bitfinex/quotes_SOLUSD_20250901
["timestamp","ask_amount","ask_price","bid_price","bid_amount"]
[1756693852315,4.34109844,198.84,198.83,0.03]
[1756693852521,9.37026762,198.84,198.83,0.03]
[1756693853920,9.37026762,198.84,198.81,0.03]
[1756693853921,7.38219688,198.82,198.81,0.03]
[1756693854087,5.91649908,198.82,198.81,0.03]
[1756693854282,6.56649908,198.82,198.81,0.03]
[1756693855724,26.0,198.82,198.81,0.03]
[1756693856013,32.56649908,198.82,198.81,0.03]
[1756693856689,32.66123764,198.82,198.81,0.03]
[1756693857591,37.19091272,198.82,198.81,0.03]
[1756693857911,32.16123764,198.82,198.81,0.03]
[1756693858212,31.51123764,198.82,198.81,0.03]
[1756693858712,25.59473856,198.82,198.81,0.03]
[1756693858912,31.51123764,198.82,198.81,0.03]
[1756693859115,6.01123764,198.82,198.81,0.71]
[1756693859310,0.09473856,198.82,198.81,0.71]
[1756693859493,6.01123764,198.82,198.81,0.71]
[1756693860000,0.09473856,198.82,198.81,0.71]
[1756693861211,0.09473856,198.82,198.81,6.62649908]
[1756693861418,0.09473856,198.82,198.81,25.25202116]
[1756693861595,0.09473856,198.82,198.81,20.22209309]
[1756693861795,0.09473856,198.82,198.81,25.75501396]
[1756693862103,0.09473856,198.82,198.81,51.83851488]
[1756693862305,0.09473856,198.82,198.81,57.75501396]
[1756693862504,0.09473856,198.82,198.72,15.11]
[1756693862820,46.0,198.66,198.57,5.91649908]
[1756693863131,25.91649908,198.66,198.65,0.79]
[1756693863506,20.0,198.66,198.65,0.1]
[1756693863928,5.91649908,198.66,198.65,0.79]
[1756693864209,25.91649908,198.66,198.65,0.79]
[1756693864517,20.0,198.69,198.65,0.79]
[1756693864712,5.91649908,198.68,198.65,0.79]
[1756693864907,20.0,198.67,198.66,44.28]
[1756693865125,5.91649908,198.68,198.66,44.97]
[1756693865323,20.0,198.69,198.67,0.69]
[1756693865630,5.91649908,198.68,198.65,32.1]
[1756693865828,20.0,198.69,198.68,44.26]
[1756693866035,25.91649908,198.69,198.68,44.95]
[1756693866229,20.0,198.7,198.68,44.95]
[1756693866530,5.91649908,198.69,198.65,32.1]
[1756693866732,5.91649908,198.68,198.66,44.22]
[1756693867029,25.91649908,198.68,198.67,0.69]
[1756693867331,25.91649908,198.68,198.67,44.85]
[1756693867710,20.0,198.68,198.67,44.85]
[1756693867908,25.91649908,198.7,198.67,44.85]
[1756693868213,20.0,198.69,198.68,0.69]
[1756693868536,20.0,198.67,198.65,0.1]
[1756693869033,20.0,198.67,198.66,44.79]
[1756693869408,20.0,198.68,198.66,44.79]
[1756693869703,20.0,198.68,198.67,44.77]
[1756693869910,25.91649908,198.68,198.67,0.69]
[1756693870211,20.0,198.64,198.63,0.03]
[1756693870431,46.0,198.62,198.61,0.03]
[1756693870731,52.41949188,198.62,198.61,0.03]
[1756693871034,20.0,198.52,198.51,0.69]
[1756693871338,20.0,198.52,198.51,45.11]
[1756693871510,25.91649908,198.53,198.51,77.11]
[1756693871708,25.91649908,198.53,198.52,0.69]
[1756693871921,20.0,198.51,198.49,0.69]
[1756693872103,25.91649908,198.51,198.5,45.09]
[1756693872309,20.0,198.52,198.5,45.11]
[1756693872533,25.91649908,198.52,198.51,0.69]
[1756693872738,20.0,198.52,198.51,0.69]
[1756693873031,25.91649908,198.52,198.51,45.09]
[1756693873242,20.0,198.5,198.48,0.69]
[1756693873417,25.91649908,198.5,198.49,45.05]
[1756693874022,20.0,198.5,198.49,0.69]
[1756693874226,20.0,198.5,198.49,45.03]
[1756693874548,20.0,198.51,198.49,45.03]
[1756693874845,20.0,198.58,198.5,6.60649908]
[1756693875050,20.0,198.56,198.52,5.91649908]
[1756693875348,5.91649908,198.57,198.53,0.69]
[1756693875707,46.0,198.58,198.5,32.0]
[1756693876012,25.91649908,198.51,198.49,0.69]
[1756693876212,26.0,198.54,198.49,0.69]
[1756693876213,25.91649908,198.5,198.49,0.69]
[1756693876437,20.0,198.49,198.46,0.69]
[1756693876644,25.91649908,198.49,198.47,0.69]
[1756693876807,25.91649908,198.49,198.48,0.69]
[1756693877140,25.91649908,198.49,198.48,44.4]
[1756693877346,25.91649908,198.49,198.45,0.69]
[1756693877632,20.10545458,198.5,198.46,45.07]
[1756693877809,5.91649908,198.49,198.47,0.69]
[1756693878016,25.91649908,198.49,198.48,0.69]
[1756693878517,20.0,198.49,198.48,0.69]
[1756693878842,25.91649908,198.49,198.48,0.69]
[1756693879016,20.0,198.49,198.48,44.36]
[1756693879224,25.91649908,198.49,198.48,44.36]
[1756693879419,20.0,198.49,198.48,44.36]
[1756693879733,25.91649908,198.49,198.45,0.69]
[1756693879940,25.91649908,198.49,198.46,44.97]
[1756693880110,20.0,198.49,198.47,0.69]
[1756693880307,20.0,198.49,198.48,0.69]
[1756693880540,20.0,198.46,198.44,0.69]
[1756693880834,20.0,198.46,198.45,44.95]
[1756693881020,25.91649908,198.47,198.45,44.95]
[1756693881221,25.91649908,198.46,198.42,32.0]
[1756693881535,20.0,198.42,198.41,0.1]
[1756693881738,25.91649908,198.42,198.41,44.34]
[1756693882335,20.0,198.42,198.41,44.34]
[1756693882531,25.91649908,198.42,198.41,44.34]
[1756693883435,26.36649908,198.42,198.39,0.03]
[1756693883639,25.91649908,198.4,198.39,0.03]
[1756693884043,26.26649908,198.4,198.39,0.03]
[1756693884335,20.35,198.4,198.39,0.03]
[1756693884545,25.91649908,198.4,198.39,0.03]
[1756693884712,26.26649908,198.4,198.39,0.03]
[1756693885336,31.30682166,198.4,198.39,0.03]
[1756693886847,25.91649908,198.4,198.39,0.03]
[1756693888134,30.95682166,198.4,198.39,0.03]
[1756693888456,31.30682166,198.4,198.39,0.03]
[1756693888628,25.91649908,198.4,198.39,0.03]
[1756693888831,31.30682166,198.4,198.39,0.03]
[1756693889133,30.95682166,198.4,198.39,0.03]
[1756693890050,25.91649908,198.4,198.39,0.03]
[1756693890450,25.91649908,198.4,198.39,0.72]
[1756693891150,25.91649908,198.4,198.39,0.03]
[1756693891329,25.91649908,198.4,198.39,0.72]
[1756693891527,20.0,198.4,198.39,0.72]
[1756693892153,20.0,198.4,198.39,44.7]
[1756693893160,2.62946661,198.48,198.39,50.61649908]
[1756693893161,20.0,198.41,198.39,50.61649908]
[1756693893365,46.0,198.44,198.4,0.71]
[1756693893666,20.0,198.47,198.43,5.91649908]
[1756693893877,20.0,198.48,198.44,6.62649908]
[1756693894050,20.0,198.48,198.45,50.52649908]
[1756693894254,20.0,198.48,198.46,6.62649908]
[1756693894454,0.10545458,198.5,198.47,6.62649908]
[1756693894969,0.09075415,198.51,198.49,5.91649908]
[1756693895168,0.09899722,198.52,198.5,6.42027741]
[1756693895374,0.10455131,198.53,198.51,50.50649908]
[1756693895547,0.09103657,198.54,198.52,5.91649908]
[1756693895752,0.09103657,198.54,198.53,5.91649908]
[1756693896053,0.09103657,198.54,198.53,6.62649908]
[1756693896879,0.10422207,198.54,198.53,6.62649908]
[1756693897538,0.10422207,198.54,198.53,20.22209309]
[1756693897769,0.10422207,198.54,198.53,57.2591152]
[1756693898149,0.10422207,198.54,198.53,46.30559401]
[1756693898665,0.10422207,198.54,198.53,57.2591152]
[1756693899246,0.10422207,198.54,198.53,51.34261612]
[1756693899458,0.10422207,198.54,198.53,57.2591152]
[1756693899756,20.10422207,198.54,198.5,0.71]
[1756693899962,20.10422207,198.54,198.53,43.74]
[1756693900162,0.10422207,198.54,198.53,44.0]
[1756693900369,26.02072115,198.54,198.43,14.09955005]
[1756693900573,20.0,198.5,198.47,0.71]
[1756693900742,20.0,198.5,198.47,6.62649908]
[1756693901044,20.0,198.5,198.48,44.69]
[1756693901239,20.0,198.5,198.49,0.71]
[1756693901842,0.10422207,198.54,198.49,6.62649908]
[1756693902050,20.0,198.53,198.51,5.91649908]
[1756693902353,0.10422207,198.54,198.52,6.62649908]
[1756693902554,0.10422207,198.54,198.53,43.96]
[1756693902865,0.10422207,198.54,198.53,87.62352119]
[1756693903055,0.0965561,198.56,198.54,13.59559401]
[1756693903242,0.09615901,198.6,198.56,13.59559401]
[1756693903449,20.0,198.66,198.6,13.59559401]
[1756693903781,0.65,198.72,198.6,6.42002375]
[1756693903782,20.0,198.67,198.6,6.42002375]
[1756693903941,20.0,198.68,198.62,19.51209309]
[1756693904147,20.0,198.66,198.62,49.85649908]
[1756693904384,20.15381311,198.63,198.62,43.94]
[1756693904858,0.15381311,198.63,198.62,43.94]
[1756693905056,0.15381311,198.63,198.62,50.56649908]
[1756693905364,0.15381311,198.63,198.54,0.50367684]
[1756693905551,0.15381311,198.63,198.58,0.71]
[1756693905739,19.15381311,198.61,198.58,5.91649908]
[1756693905943,19.15381311,198.61,198.59,44.0]
[1756693906553,19.15381311,198.6,198.57,32.0]
[1756693906765,19.15381311,198.59,198.58,43.98]
[1756693906975,19.15381311,198.59,198.54,0.71]
[1756693906976,19.15381311,198.58,198.53,5.91649908]
[1756693907176,19.15381311,198.57,198.54,43.96]
[1756693907487,19.15381311,198.57,198.5,0.71]
[1756693907690,19.15381311,198.55,198.51,49.87649908]
[1756693907978,19.15381311,198.54,198.51,52.78768352]
[1756693908185,19.15381311,198.54,198.52,8.82768352]
[1756693908575,19.15381311,198.54,198.51,52.78768352]
[1756693908784,19.15381311,198.55,198.51,52.78768352]
[1756693908988,19.15381311,198.57,198.52,0.71]
[1756693909686,26.65,198.61,198.47,0.03]
[1756693909687,19.15381311,198.54,198.53,43.88]
[1756693909986,19.15381311,198.54,198.53,75.86]
[1756693910189,19.15381311,198.54,198.53,43.86]
[1756693910781,19.15381311,198.53,198.5,8.82768352]
[1756693911080,19.15381311,198.49,198.47,8.85768352]
[1756693911283,19.15381311,198.49,198.48,43.84]
[1756693911510,19.15381311,198.49,198.48,43.82]
[1756693911696,19.15381311,198.49,198.47,0.03]
[1756693911697,19.15381311,198.48,198.47,0.03]
[1756693911915,28.63149663,198.48,198.47,0.03]
[1756693912279,28.63149663,198.48,198.47,43.85]
[1756693913489,28.63149663,198.48,198.47,0.03]
[1756693913702,33.66978764,198.48,198.47,0.03]
[1756693914009,54.63149663,198.48,198.47,43.79]
[1756693914186,60.17278044,198.48,198.47,0.03]
[1756693914703,54.63149663,198.48,198.47,0.03]
[1756693915677,54.63149663,198.48,198.47,43.77]
[1756693915878,53.98149663,198.48,198.47,43.77]
[1756693916081,45.15381311,198.48,198.47,43.77]
[1756693916603,19.15381311,198.48,198.47,43.77]
[1756693916801,19.26382826,198.48,198.47,43.77]
[1756693917103,19.26382826,198.48,198.47,84.59768352]
[1756693917304,0.11001515,198.48,198.47,76.48]
[1756693917487,0.11001515,198.48,198.47,85.30768352]
[1756693917689,0.11001515,198.48,198.47,32.03]
[1756693918001,0.11001515,198.48,198.47,85.26768352]
[1756693918203,0.11001515,198.48,198.47,76.44]
[1756693918420,0.09727095,198.49,198.47,98.86327753]
[1756693918584,0.09727095,198.49,198.48,23.13327753]
[1756693918786,0.09727095,198.49,198.48,14.30559401]
[1756693918988,0.09727095,198.49,198.48,23.13327753]
[1756693919192,0.09727095,198.49,198.48,71.83156854]
[1756693919898,0.09727095,198.49,198.48,72.33539764]
[1756693920097,0.09727095,198.49,198.48,67.29710663]
[1756693920298,0.09727095,198.49,198.48,19.84771412]
[1756693920582,0.09727095,198.49,198.48,72.33539764]
[1756693920785,0.0940254,198.51,198.5,13.59559401]
[1756693921014,0.0940254,198.51,198.5,22.92705586]
[1756693921199,0.0940254,198.51,198.5,72.33483923]
[1756693921393,0.0940254,198.51,198.5,67.29705586]
[1756693922023,0.0940254,198.51,198.5,72.33483923]
[1756693922382,0.0940254,198.51,198.5,67.29705586]
[1756693923388,0.0940254,198.51,198.5,104.33483923]
[1756693923590,0.0940254,198.51,198.5,118.9410609]
[1756693924008,0.09654223,198.52,198.5,127.76874442]
[1756693924300,0.1058097,198.53,198.5,127.76874442]
[1756693924301,0.1058097,198.53,198.52,37.53327753]
[1756693924690,0.1058097,198.53,198.52,38.20327753]
[1756693924895,0.1006947,198.56,198.52,38.20327753]
[1756693924896,7.14745712,198.6,198.53,13.59559401]
[1756693925113,7.14745712,198.6,198.59,8.82768352]
[1756693925423,7.14745712,198.6,198.59,52.48768352]
[1756693925621,0.06,198.63,198.59,52.48768352]
[1756693925828,0.06,198.63,198.62,8.82768352]
[1756693925992,0.06,198.63,198.62,52.48768352]
[1756693926200,7.14745712,198.61,198.53,0.67]
[1756693926393,7.14745712,198.61,198.58,8.82768352]
[1756693926587,7.14745712,198.61,198.59,52.48768352]
[1756693926792,7.20745712,198.63,198.6,8.82768352]
[1756693927097,0.06,198.63,198.62,8.82768352]
[1756693927508,0.06,198.63,198.62,52.48768352]
[1756693927837,0.06,198.63,198.62,8.82768352]
[1756693928119,0.06,198.63,198.62,49.5804024]
[1756693928296,0.72,198.63,198.62,49.5804024]
[1756693928793,7.14745712,198.61,198.6,32.0]
[1756693928996,7.14745712,198.6,198.48,0.03]
[1756693929195,7.14745712,198.57,198.55,5.9204024]
[1756693929389,7.80745712,198.57,198.56,43.64]
[1756693929596,7.14745712,198.56,198.48,0.7]
[1756693929893,7.14745712,198.55,198.51,5.9204024]
[1756693930110,0.66,198.54,198.52,43.64]
[1756693930311,5.03562367,198.59,198.49,5.9204024]
[1756693930312,7.80745712,198.53,198.49,5.9204024]
[1756693930502,7.14745712,198.53,198.5,49.5604024]
[1756693930686,7.14745712,198.51,198.48,0.03]
[1756693930895,7.14745712,198.51,198.49,49.5604024]
[1756693931193,7.80745712,198.51,198.48,0.03]
[1756693931416,7.80745712,198.51,198.49,43.64]
[1756693931991,7.14745712,198.51,198.49,84.47081287]
[1756693932213,7.14745712,198.52,198.49,84.47081287]
[1756693932415,7.14745712,198.55,198.51,8.83081287]
[1756693932716,7.14745712,198.55,198.53,8.83081287]
[1756693932923,7.14745712,198.54,198.53,8.83081287]
[1756693933095,7.14745712,198.55,198.53,8.83081287]
[1756693933514,7.14745712,198.55,198.52,43.64]
[1756693933515,7.14745712,198.56,198.54,8.83081287]
[1756693933824,7.14745712,198.59,198.55,52.47081287]
[1756693934000,7.14745712,198.56,198.55,43.64]
[1756693934193,7.14745712,198.58,198.55,52.47081287]
[1756693934391,7.14745712,198.59,198.57,8.83081287]
[1756693934598,7.14745712,198.59,198.58,52.47081287]
[1756693935297,7.14745712,198.59,198.54,0.67]
[1756693935503,7.14745712,198.59,198.58,8.83081287]
[1756693935810,7.14745712,198.59,198.58,52.47081287]
[1756693936117,0.06,198.63,198.58,52.47081287]
[1756693936118,7.14745712,198.61,198.58,52.47081287]
[1756693936300,7.14745712,198.6,198.59,8.83081287]
[1756693936508,7.14745712,198.59,198.58,52.47081287]
[1756693936802,7.25655502,198.59,198.58,52.47081287]
[1756693937521,7.25655502,198.59,198.58,84.47081287]
[1756693938226,7.25655502,198.59,198.58,43.64]
[1756693938433,7.91655502,198.59,198.58,43.64]
[1756693938832,7.91655502,198.59,198.56,8.83081287]
[1756693939012,0.66,198.58,198.57,43.64]
[1756693939330,7.25655502,198.59,198.57,52.47081287]
[1756693939505,7.91655502,198.59,198.57,52.47081287]
[1756693939906,7.91655502,198.59,198.58,0.03]
[1756693940203,16.74736789,198.59,198.58,0.03]
[1756693940419,16.74736789,198.59,198.58,43.67]
[1756693940630,7.14745712,198.5,198.48,8.86081287]
[1756693940830,7.14745712,198.52,198.49,52.47081287]
[1756693941006,8.83081287,198.55,198.5,8.83081287]
[1756693941007,7.14745712,198.51,198.5,8.83081287]
[1756693941205,7.14745712,198.51,198.5,32.0]
[1756693942002,7.14745712,198.53,198.5,41.50081287]
[1756693942209,7.14745712,198.55,198.52,8.83081287]
[1756693942533,7.14745712,198.57,198.54,8.83081287]
[1756693942830,0.1090979,198.59,198.56,8.83081287]
[1756693943031,7.14745712,198.58,198.57,52.47081287]
[1756693943605,7.14745712,198.58,198.57,8.83081287]
[1756693943831,0.1090979,198.59,198.57,52.47081287]
[1756693944006,0.1090979,198.59,198.58,8.83081287]
[1756693944207,7.25655502,198.59,198.58,8.83081287]
[1756693944410,7.91655502,198.59,198.58,43.64]
[1756693944908,7.25655502,198.59,198.58,43.64]
[1756693945130,7.25655502,198.59,198.58,52.47081287]
[1756693945332,0.1090979,198.59,198.58,52.47081287]
[1756693945715,7.25655502,198.59,198.58,52.47081287]
[1756693946325,0.1090979,198.59,198.58,57.50656672]
[1756693946634,0.1090979,198.59,198.58,53.14081287]
[1756693947018,0.1090979,198.59,198.58,103.77216073]
[1756693947628,0.1090979,198.59,198.58,98.73640688]
[1756693948113,0.1090979,198.59,198.58,103.77216073]
[1756693948312,0.1090979,198.59,198.58,103.10216073]
[1756693948612,0.1090979,198.59,198.58,84.45081287]
[1756693949818,0.1090979,198.59,198.58,90.15656672]
[1756693950011,0.1090979,198.59,198.58,103.75216073]
[1756693951334,0.1090979,198.59,198.58,60.13216073]
[1756693951511,0.1090979,198.59,198.58,104.25573611]
[1756693951710,0.1090979,198.59,198.58,103.75216073]
[1756693952820,0.1090979,198.59,198.58,118.88216073]
[1756693954029,0.1090979,198.59,198.58,115.96940622]
[1756693954454,0.1090979,198.59,198.58,121.88746458]
[1756693954848,0.1090979,198.59,198.58,50.63134786]
[1756693955032,0.1090979,198.59,198.58,95.11365237]
[1756693955353,0.1090979,198.59,198.58,100.14940622]
[1756693955552,0.1090979,198.59,198.58,89.19559401]
[1756693955849,0.8090979,198.59,198.58,32.0]
[1756693956145,7.95655502,198.59,198.58,75.6]
[1756693956722,8.04735598,198.59,198.58,75.6]
[1756693956923,7.93825808,198.59,198.58,75.6]
[1756693957663,13.85631644,198.59,198.58,75.6]
[1756693957865,13.85631644,198.59,198.5,5.71771241]
[1756693958025,7.14745712,198.57,198.53,5.91805836]
[1756693958229,13.06551548,198.56,198.54,43.6]
[1756693958431,13.76551548,198.55,198.54,43.6]
[1756693958827,7.84745712,198.55,198.54,43.6]
[1756693960526,13.76551548,198.55,198.54,43.6]
[1756693961032,13.76551548,198.55,198.54,43.58]
[1756693962066,7.14745712,198.51,198.49,32.0]
[1756693962236,0.7,198.5,198.48,0.03]
[1756693962557,13.06551548,198.49,198.48,0.03]
[1756693962857,7.84745712,198.49,198.48,43.61]
[1756693963046,13.76551548,198.49,198.48,43.61]
[1756693963858,7.14745712,198.51,198.48,49.52805836]
[1756693964075,7.14745712,198.51,198.48,43.61]
[1756693964360,5.91805836,198.49,198.48,43.61]
[1756693964531,13.76551548,198.49,198.48,0.03]
[1756693964735,13.76551548,198.49,198.48,43.61]
[1756693965032,7.14745712,198.52,198.48,49.52805836]
[1756693965233,7.14745712,198.51,198.48,49.52805836]
[1756693965453,7.14745712,198.56,198.5,5.91805836]
[1756693965642,7.14745712,198.56,198.52,5.91805836]
[1756693965937,6.61805836,198.57,198.51,43.58]
[1756693965938,7.14745712,198.57,198.54,5.91805836]
[1756693966259,7.14745712,198.55,198.52,5.91805836]
[1756693966466,7.14745712,198.57,198.53,49.49805836]
[1756693967038,7.14745712,198.54,198.53,49.49805836]
[1756693967243,7.14745712,198.57,198.53,49.49805836]
[1756693967431,7.14745712,198.58,198.54,5.91805836]
[1756693967634,7.14745712,198.58,198.55,5.91805836]
[1756693967849,7.14745712,198.57,198.56,43.58]
[1756693968242,0.7,198.58,198.49,0.50380371]
[1756693968243,7.14745712,198.56,198.49,0.50380371]
[1756693968448,13.76551548,198.55,198.5,43.58]
[1756693968764,7.14745712,198.52,198.5,32.0]
[1756693969067,13.76551548,198.51,198.48,0.03]
[1756693969242,7.14745712,198.49,198.48,0.03]
[1756693969564,13.06551548,198.49,198.48,0.03]
[1756693969769,13.76551548,198.49,198.48,43.61]
[1756693969970,7.84745712,198.49,198.48,43.61]
[1756693970266,13.76551548,198.49,198.48,43.61]
[1756693970862,7.14745712,198.5,198.48,43.61]
[1756693971772,7.14745712,198.49,198.48,43.61]
[1756693972149,7.84745712,198.49,198.48,43.61]
[1756693972541,14.26850828,198.49,198.48,0.03]
[1756693972742,14.26850828,198.49,198.48,43.61]
[1756693973041,19.30654546,198.49,198.48,43.61]
[1756693974242,14.26850828,198.49,198.48,43.61]
[1756693974675,19.30654546,198.49,198.48,43.61]
[1756693974870,19.30654546,198.49,198.48,0.03]
[1756693975055,14.26850828,198.49,198.38,5.91805836]
[1756693975252,7.14745712,198.4,198.39,9.63805836]
[1756693975565,26.0,198.46,198.39,41.63805836]
[1756693975566,7.14745712,198.42,198.39,41.63805836]
[1756693975746,7.14745712,198.44,198.4,5.91805836]
[1756693975947,7.14745712,198.42,198.4,5.91805836]
[1756693976452,7.14745712,198.44,198.4,5.91805836]
[1756693976658,7.14745712,198.43,198.4,5.91805836]
[1756693976857,0.10947008,198.41,198.4,5.91805836]
[1756693977159,0.10947008,198.41,198.35,13.59559401]
[1756693977367,0.10947008,198.41,198.36,43.56]
[1756693977570,0.10947008,198.41,198.36,49.47805836]
[1756693977571,7.2569272,198.41,198.36,49.47805836]
[1756693977752,11.83611672,198.37,198.25,12.85254288]
[1756693977957,7.14745712,198.24,198.18,5.91805836]
[1756693978165,7.14745712,198.26,198.22,5.91805836]
[1756693978344,7.14745712,198.25,198.22,5.91805836]
[1756693978541,7.14745712,198.24,198.19,43.56]
[1756693978770,7.14745712,198.26,198.2,5.91805836]
[1756693978944,7.14745712,198.24,198.22,5.91805836]
[1756693979144,7.14745712,198.26,198.21,5.91805836]
[1756693979372,5.91805836,198.28,198.21,5.91805836]
[1756693979373,7.14745712,198.25,198.21,5.91805836]
[1756693979573,5.91805836,198.25,198.19,43.56]
[1756693979741,7.14745712,198.24,198.19,49.47805836]
[1756693979943,7.14745712,198.26,198.2,8.85436259]
[1756693980176,7.14745712,198.24,198.2,32.0]
[1756693980371,7.14745712,198.26,198.21,8.85436259]
[1756693980566,16.00181971,198.26,198.2,40.85436259]
[1756693980883,7.14745712,198.26,198.22,8.85436259]
[1756693981185,7.14745712,198.25,198.23,43.56]
[1756693981352,7.14745712,198.23,198.2,32.0]
[1756693981553,7.14745712,198.23,198.21,43.56]
[1756693981756,7.14745712,198.22,198.21,43.56]
[1756693982147,7.14745712,198.26,198.21,52.41436259]
[1756693982350,7.14745712,198.25,198.21,52.41436259]
[1756693982682,7.14745712,198.25,198.21,43.56]
[1756693982872,8.85436259,198.27,198.21,52.41436259]
[1756693982873,7.14745712,198.24,198.21,52.41436259]
[1756693983249,7.14745712,198.25,198.21,57.45941362]
[1756693983457,7.14745712,198.26,198.21,48.60505103]
[1756693983682,7.14745712,198.26,198.22,8.85436259]
[1756693983852,7.14745712,198.28,198.25,8.85436259]
[1756693984062,7.14745712,198.28,198.26,43.56]
[1756693984294,7.14745712,198.29,198.26,43.56]
[1756693984464,7.14745712,198.31,198.27,8.85436259]
[1756693984780,7.14745712,198.29,198.26,43.56]
[1756693984985,7.14745712,198.31,198.27,8.85436259]
[1756693985155,7.14745712,198.32,198.26,43.56]
[1756693985350,7.14745712,198.32,198.27,8.85436259]
[1756693985572,7.14745712,198.32,198.28,8.85436259]
[1756693985753,7.14745712,198.33,198.27,13.59559401]
[1756693986069,7.14745712,198.33,198.3,8.85436259]
[1756693986378,16.00181971,198.37,198.31,52.43436259]
[1756693986679,7.14745712,198.35,198.31,43.58]
[1756693986995,7.14745712,198.32,198.31,8.85436259]
[1756693987187,7.14745712,198.32,198.31,43.56]
[1756693987395,7.14745712,198.32,198.22,5.0448996]
[1756693987690,7.14745712,198.32,198.26,8.85436259]
[1756693987691,7.14745712,198.29,198.26,8.85436259]
[1756693987855,7.14745712,198.29,198.27,43.56]
[1756693988057,7.14745712,198.3,198.27,52.41436259]
[1756693988353,7.14745712,198.29,198.27,43.56]
[1756693989063,7.14745712,198.29,198.28,43.56]
[1756693989268,16.00181971,198.29,198.28,43.56]
[1756693989979,7.14745712,198.29,198.28,43.56]
[1756693990778,7.14745712,198.31,198.28,52.41436259]
[1756693991087,7.14745712,198.34,198.3,8.85436259]
[1756693991283,7.14745712,198.31,198.29,8.85436259]
[1756693991509,7.14745712,198.33,198.3,8.85436259]
[1756693991662,7.14745712,198.34,198.31,8.85436259]
[1756693991861,7.14745712,198.35,198.32,43.56]
[1756693992074,7.14745712,198.36,198.33,8.85436259]
[1756693992485,0.81947008,198.41,198.32,43.56]
[1756693992486,0.10947008,198.41,198.35,8.85436259]
[1756693992703,0.10947008,198.41,198.4,8.85436259]
[1756693992867,0.10947008,198.41,198.4,52.41436259]
[1756693993062,0.10947008,198.41,198.4,66.0099566]
[1756693993378,0.10947008,198.41,198.4,27.99431143]
[1756693993570,0.10947008,198.41,198.36,2.019437]
[1756693993888,7.14745712,198.4,198.37,35.21436259]
[1756693994068,7.14745712,198.39,198.38,43.56]
[1756693994661,7.14745712,198.4,198.38,43.56]
[1756693994864,7.14745712,198.39,198.38,52.41436259]
[1756693995099,7.14745712,198.39,198.38,43.56]
[1756693995468,7.14745712,198.39,198.38,75.56]
[1756693995777,7.2569272,198.41,198.38,84.41436259]
[1756693995977,7.14745712,198.39,198.38,40.85436259]
[1756693996199,7.14745712,198.39,198.38,32.0]
[1756693996570,7.14745712,198.38,198.32,8.85436259]
[1756693996780,16.00181971,198.36,198.27,5.04362737]
[1756693996992,7.14745712,198.34,198.29,8.85436259]
[1756693997196,7.14745712,198.32,198.27,8.85436259]
[1756693997488,7.14745712,198.33,198.31,8.85436259]
[1756693997692,7.14745712,198.33,198.32,43.54]
[1756693997984,26.81310764,198.39,198.32,52.39436259]
[1756693997985,7.14745712,198.36,198.32,52.39436259]
[1756693998191,7.14745712,198.36,198.35,8.85436259]
[1756693998406,0.81310764,198.39,198.35,8.85436259]
[1756693998407,7.25056476,198.39,198.35,8.85436259]
[1756693998606,7.25056476,198.39,198.36,52.39436259]
[1756693998905,0.10310764,198.39,198.38,8.85436259]
[1756693999084,7.25056476,198.39,198.38,8.85436259]
[1756693999283,0.10310764,198.39,198.38,8.85436259]
[1756693999508,0.10310764,198.39,198.38,45.89519331]
[1756694000190,0.10310764,198.39,198.38,32.0]
[1756694000711,0.09868978,198.41,198.38,99.25363897]
[1756694000880,0.09868978,198.41,198.4,8.85436259]
[1756694001074,0.09868978,198.41,198.4,43.54]
[1756694001307,0.09868978,198.41,198.4,57.43468517]
[1756694001505,0.09868978,198.41,198.4,52.39436259]
[1756694002120,0.09868978,198.41,198.4,5.93165567]
[1756694002418,0.09868978,198.41,198.4,49.45165567]
[1756694002582,0.09868978,198.41,198.4,5.93165567]
[1756694002783,0.09868978,198.41,198.4,49.45165567]
[1756694003092,0.09868978,198.41,198.4,54.49197825]
[1756694003301,0.09868978,198.41,198.4,10.97197825]
[1756694003483,0.09868978,198.41,198.4,54.49197825]